{"text_format":"3","workbook":"xlsx","n_sheets":1,"sheets":["Tabelle1"],"not_rendered":{"defined_names":18},"read":"whole","date_system":"1900"}

{"sheet":"Tabelle1","index":0,"n_rows":78,"n_cols":6,"rows_kept":78,"merged":[[0,0,0,5],[1,0,1,5],[3,0,6,0],[3,2,9,5],[8,0,9,0],[11,0,11,4],[12,3,12,4],[13,3,13,4],[14,1,14,4],[15,1,15,4],[16,1,16,4],[17,1,17,4],[18,1,18,2],[20,0,20,4],[21,1,21,4],[22,1,22,4],[23,1,23,4],[25,0,25,4],[26,0,26,4],[27,1,27,4],[29,0,29,4],[30,0,30,4],[31,1,31,4],[35,0,35,6],[36,0,36,6],[41,1,41,4],[43,0,44,0],[43,1,44,1],[43,2,44,2],[43,3,44,3],[43,4,43,5],[56,0,57,0],[56,1,57,1],[56,2,57,2],[56,3,56,4],[58,0,60,0],[61,0,62,0],[61,1,62,1],[61,2,62,2],[61,3,62,3],[61,4,62,4],[63,0,65,0],[67,0,67,5],[68,0,69,0],[68,3,68,4],[72,0,74,0]]}
["Antrag auf PRÜFUNGSVERGÜTUNG"]
["digital oder handschriftlich ausfüllen"]
[]
["An das\nStaatliche Schulamt Ludwigsburg\nMömpelgardstraße 26\n71640 Ludwigsburg",null,"Eingangsstempel\nSSA Ludwigsburg"]
[]
[]
[]
[]
["Abgabe bis \nspätestens 01. Oktober!"]
[]
[]
["Angaben zur Person"]
["Familienname",null,"Vorname"]
["Geburtsdatum",null,"Amtsbezeichnung"]
["Stammschule / Ort"]
["Wohnanschrift, Straße"]
["Postleitzahl, Wohnort"]
["IBAN (vollständig!)"]
["Personalnummern (erste 8 Ziffern)"]
[]
["Angaben zur Prüfung"]
["Art der Prüfung\n (Schulfremde/ Sondersprache/ Abschluss sonstige Träger)"]
["Datum der Prüfungen"]
["Prüfschule(n)"]
[]
["Vom Antragsteller auszufüllen"]
["Ich beantrage die Auszahlung der Prüfungsvergütung für die weiter unten angegebene Prüfungstätigkeit.\nDie ausgeführten Tätigkeiten gehören nicht zu meinem Hauptamt, sondern wurden nebenamtlich und ohne Entlastung im Hauptamt wahrgenommen (vgl. KuU 1980, S. 1899 ff)\nIch versicherer pflichtgemäß die Richtigkeit meiner Angaben"]
["Datum und Unterschrift\n des Antragstellers"]
[]
["Vom Prüfungsvorsitzenden auszufüllen"]
["Mit der beantragten Vergütung wird der Hauptschul- Werkrealschul- oder Realschulabschluss erworben.\nDie Angaben des Antragsstellers auf der Anlage \"Angaben zur Prüfungstätigkeit\" werden bestätigt."]
["Datum und Unterschrift\ndes Prüfungsvorsitzenden, Amtsbez."]
[]
[]
[]
["Angaben zur Prüfungstätigkeit"]
["(gemäß PrüfVerg.VwV vom 15.01.2018)"]
[]
["Die Tätigkeit in Teil A bis C muss außerhalb der normalen Arbeitszeit durchgeführt worden sein."]
["Die Tätigkeit darf nicht durch Zeitausgleich vergütet worden sein."]
[]
["Name:       "]
["A.  Schriftliche Prüfung"]
["Prüfungstätigkeit","Prüfungsfach","Bearbeitungszeit der Prüfung","Anzahl der Prüflinge","Vom SSA LB ausgefüllt"]
[{"$nulls":4},"Verg.satz","Gesamtverg."]
[null," Deutsch",{"$nulls":3},{"$f":"D46*E46","v":{"v":0,"d":"0.00 €"}}]
[null," Mathematik",{"$nulls":3},{"$f":"D47*E47","v":{"v":0,"d":"0.00 €"}}]
[" Erstkorrektur","  Englisch",{"$nulls":3},{"v":0,"d":"0.00 €"}]
[null," Wahlpflichtfach",{"$nulls":3},{"v":0,"d":"0.00 €"}]
[null," Hausarbeit (Präs.pfg)",{"$nulls":3},{"v":0,"d":"0.00 €"}]
[null," Deutsch",{"$nulls":3},{"v":0,"d":"0.00 €"}]
[" Zweitkorrektur"," Mathematik",{"$nulls":3},{"v":0,"d":"0.00 €"}]
[" mit Kenntnis der","  Englisch",{"$nulls":3},{"v":0,"d":"0.00 €"}]
[" Erstbegutachtung"," Wahlpflichtfach",{"$nulls":3},{"v":0,"d":"0.00 €"}]
[null," Hausarbeit(Präs.pfg",{"$nulls":3},{"v":0,"d":"0.00 €"}]
["B.  Mündliche Prüfung, Mitwirkung"]
["Prüfungstätigkeit","Prüfungsfach","Anzahl der Prüflinge","Vom SSA LB ausgefüllt"]
[{"$nulls":3},"Verg.satz","Gesamtverg."]
[" Prüfungsgespräch\n geführt",{"$nulls":3},{"$f":"C59*D59","v":{"v":0,"d":"0.00 €"}}]
[{"$nulls":4},{"$f":"C60*D60","v":{"v":0,"d":"0.00 €"}}]
[{"$nulls":4},{"$f":"C61*D61","v":{"v":0,"d":"0.00 €"}}]
[" Prüfungsgespräch geführt     bei Präsentationsprüfung (HS)","  ",null,null,{"$f":"C62*D62","v":{"v":0,"d":"0.00 €"}}]
[]
[" kein Prüfungsgespräch",{"$nulls":3},{"$f":"C64*D64","v":{"v":0,"d":"0.00 €"}}]
[{"$nulls":4},{"$f":"C65*D65","v":{"v":0,"d":"0.00 €"}}]
[{"$nulls":4},{"v":0,"d":"0.00 €"}]
[" kein Prüfungsgespräch\n Präsentationsprüfung (HS)"," ",null,null,{"$f":"Text58*D67","v":{"v":0,"d":"0.00 €"}}]
["C.  Ausübung sonstiger Tätigkeiten im Rahmen einer Prüfung"]
["Prüfungstätigkeit","Prüfungsart","Anzahl der","Vom SSA LB ausgefüllt"]
[null,"z.B. HS, RS","Prüflinge","Verg. satz","Gesamtverg."]
[" Gesamte Verwaltungstätigkeit",{"$nulls":3},{"$f":"C71*D71","v":{"v":0,"d":"0.00 €"}}]
["(kann nur 1 Person abrechnen)",{"$nulls":3},{"$f":"C72*D72","v":{"v":0,"d":"0.00 €"}}]
[" Aufwartdienst \n(Vorbereitung der Prüfungsräume, Säubern, Nachbereitung Räume)","      ","      ","      ","      "]
[{"$nulls":4},{"$f":"C74*D74","v":{"v":0,"d":"0.00 €"}}]
[{"$nulls":4},{"$f":"C75*D75","v":{"v":0,"d":"0.00 €"}}]
[" Aufsicht   weisungsbefugt","Dauer in Std",null,null,{"$f":"C76*D76","v":{"v":0,"d":"0.00 €"}}]
[" schriftliche Prüfung","Dauer in Std",null,null,{"$f":"C77*D77","v":{"v":0,"d":"0.00 €"}}]
[{"$nulls":3},"Gesamt:",{"$f":"F46+F47+F48+F49+F50+F51+F52+F53+F54+F55+E59+E60+E61+E62+E64+E65+E66+E67+E71+E72+E74+E75+E76+E77","v":{"v":0,"d":"0.00 €"}}]